bitfinex-derivatives/quotes_ETHF0:USTF0_20250126
["timestamp","ask_amount","ask_price","bid_price","bid_amount"]
[1737855723974,1.44403661,3334.6,3334.1,1.07723]
[1737855724177,1.07876,3334.6,3334.2,0.59993]
[1737855724674,0.65020889,3334.5,3334.2,0.59993]
[1737855725377,1.25008889,3334.5,3334.1,1.07724]
[1737855725575,0.3653752,3334.4,3334.1,1.07724]
[1737855725969,0.3653752,3334.4,3334.1,0.4773]
[1737855726280,0.59993,3334.2,3334.0,3.2078]
[1737855726481,0.36529379,3334.1,3334.0,3.2078]
[1737855726675,1.47314379,3334.1,3334.0,3.2078]
[1737855726881,1.7579234,3334.1,3334.0,3.2078]
[1737855727082,0.59999,3333.9,3333.6,0.51285732]
[1737855727282,0.96530379,3333.8,3333.6,0.51285732]
[1737855727477,0.3652214,3333.7,3333.6,0.51285732]
[1737855727976,0.96524095,3333.7,3333.6,0.51285732]
[1737855728180,0.96524095,3333.7,3333.6,0.00305732]
[1737855729174,0.60002,3333.7,3333.6,0.00305732]
[1737855735079,3.80782,3333.7,3333.6,0.00305732]
[1737855740290,3.2078,3333.7,3333.6,0.00305732]
[1737855740484,3.80782,3333.7,3333.6,0.00305732]
[1737855741296,3.2078,3333.7,3333.6,0.00305732]
[1737855741985,0.5079,3334.1,3333.6,0.00305732]
[1737855742184,0.5079,3334.1,3333.9,0.59998]
[1737855743191,0.5079,3334.1,3333.8,0.59999]
[1737855744091,2.979,3334.4,3334.0,2.05271993]
[1737855744291,3.498,3334.4,3334.0,2.05271993]
[1737855744486,4.09789,3334.4,3334.0,2.65266993]
[1737855746490,1.11889,3334.4,3334.0,2.65266993]
[1737855746795,1.11889,3334.4,3334.1,0.59994]
[1737855747294,1.11889,3334.4,3334.1,0.5096]
[1737855747497,0.36408315,3334.3,3334.1,0.5096]
[1737855747796,0.96400315,3334.3,3334.1,0.5096]
[1737855747986,0.519,3334.4,3334.1,0.5096]
[1737855747987,1.1189,3334.4,3334.1,0.5096]
[1737855748184,0.3641074,3334.3,3334.1,0.5096]
[1737855748901,0.9640274,3334.3,3334.1,0.5096]
[1737855749195,0.3641074,3334.2,3334.1,0.5096]
[1737855751301,0.9640374,3334.2,3333.9,3.80778]
[1737855751600,0.36453013,3334.1,3333.9,3.80778]
[1737855752298,0.96448013,3334.1,3333.9,3.80778]
[1737855752497,0.36453013,3334.0,3333.9,3.80778]
[1737855752698,0.36478024,3334.0,3333.9,3.80778]
[1737855752896,0.36477975,3334.0,3333.9,3.80778]
[1737855753102,0.59995,3334.1,3333.9,3.80778]
[1737855753397,0.36477919,3334.0,3333.9,3.80778]
[1737855754492,2.979,3335.2,3333.9,3.2078]
[1737855754693,0.4765,3335.2,3334.6,5.26051993]
[1737855754893,0.4765,3335.2,3334.9,0.59979]
[1737855755196,0.4765,3335.2,3335.0,0.59978]
[1737855755696,1.07626,3335.2,3334.9,0.59979]
[1737855756795,0.4765,3335.2,3335.0,0.59977]
[1737855758390,0.4765,3335.2,3334.7,0.9898]
[1737855760803,0.59978,3335.1,3334.8,0.59982]
[1737855761503,0.59978,3335.0,3334.8,0.59982]
[1737855763505,0.4765,3335.2,3334.6,5.26051993]
[1737855763709,0.4765,3335.2,3334.7,0.59983]
[1737855763908,0.5998,3335.0,3334.7,0.59983]
[1737855764607,0.35563802,3334.9,3334.7,0.59983]
[1737855764804,0.35563802,3334.9,3334.8,0.59982]
[1737855765308,0.35563802,3335.0,3334.8,0.59982]
[1737855765905,0.59979,3335.0,3334.8,0.59982]
[1737855766103,0.27528314,3335.1,3334.8,0.59982]
[1737855766104,0.35563802,3334.9,3334.8,0.59982]
[1737855766299,0.87509229,3335.1,3334.8,0.59982]
[1737855766494,0.63096031,3335.0,3334.8,0.59982]
[1737855766906,0.63096031,3335.0,3334.6,5.26051993]
[1737855766907,0.9997,3334.9,3334.7,0.59983]
[1737855767105,0.35563802,3334.8,3334.7,0.59984]
[1737855767706,0.59984,3334.7,3334.6,3.2078]
[1737855767908,1.71036433,3334.7,3334.6,3.2078]
[1737855768114,1.71036433,3334.7,3334.4,0.59988]
[1737855768301,1.23098433,3334.6,3334.4,0.59988]
[1737855768607,0.35563802,3334.5,3334.4,0.59988]
[1737855768808,0.4794,3334.5,3334.4,0.59988]
[1737855770102,1.10493,3334.8,3334.3,2.53671993]
[1737855770299,0.5073,3334.7,3334.5,0.59986]
[1737855771110,1.10714,3334.7,3334.5,0.59986]
[1737855772605,0.5073,3334.7,3334.5,0.59986]
[1737855774505,0.5073,3334.7,3334.4,0.59988]
[1737855774808,0.5073,3334.7,3334.5,0.59986]
[1737855777606,0.5073,3334.7,3334.3,2.53671993]
[1737855777906,0.5073,3334.7,3334.4,0.59988]
[1737855778505,0.5073,3334.7,3333.8,3.2078]
[1737855778809,0.59997,3334.0,3333.8,3.2078]
[1737855779010,1.4659,3333.9,3333.8,3.2078]
[1737855780715,2.06588,3333.9,3333.8,3.2078]
[1737855786617,0.60002,3333.7,3333.6,0.00305732]
[1737855787011,0.9564877,3333.7,3333.6,0.00305732]
[1737855788117,0.60013,3333.1,3333.0,3.2078]
[1737855789712,1.0363,3333.3,3333.0,3.2078]
[1737855789919,0.60012,3333.2,3333.0,3.2078]
[1737855791217,1.09112,3333.2,3333.0,3.2078]
[1737855792125,0.60013,3333.1,3333.0,3.2078]
[1737855794722,0.59874148,3333.1,3333.0,3.2078]
[1737855796019,0.00449802,3333.4,3333.3,0.60009]
[1737855796425,0.00449802,3333.4,3333.1,0.4761]
[1737855796636,0.00449802,3333.4,3333.2,1.1168]
[1737855797128,0.00449802,3333.4,3333.0,3.2078]
[1737855798142,0.00449802,3333.4,3332.8,3.2078]
[1737855798326,0.60016,3332.9,3332.8,3.2078]
[1737855799334,0.60015,3333.0,3332.8,3.2078]
[1737855800030,0.60011,3333.2,3332.8,3.2078]
[1737855800230,0.4854,3333.3,3332.8,3.2078]
[1737855800531,0.60015,3333.0,3332.8,3.2078]
[1737855800733,0.60014,3333.0,3332.8,3.2078]
[1737855801031,0.60016,3332.9,3332.8,3.2078]
[1737855801232,0.60015,3333.0,3332.8,3.2078]
[1737855801730,0.60016,3332.9,3332.8,3.2078]
[1737855803331,1.07395,3333.0,3332.8,3.2078]
[1737855809230,1.09354,3333.1,3332.8,3.2078]
[1737855810536,1.09354,3333.1,3332.7,0.60468802]
[1737855811039,0.60016,3333.0,3332.7,0.00449802]
[1737855811438,0.60016,3332.9,3332.7,0.00449802]
[1737855811939,0.60015,3333.0,3332.7,0.00449802]
[1737855813032,0.60015,3333.0,3332.7,0.60469802]
[1737855813436,0.60017,3332.9,3332.7,0.00449802]
[1737855814742,0.35730531,3332.8,3332.7,0.00449802]
[1737855815239,0.63397229,3332.8,3332.7,0.00449802]
[1737855815434,0.35730531,3332.8,3332.7,0.00449802]
[1737855815837,0.63397185,3332.8,3332.7,0.00449802]
[1737855816036,0.95748531,3332.8,3332.7,0.00449802]
[1737855816237,1.23415185,3332.8,3332.7,0.00449802]
[1737855822742,0.95748531,3332.8,3332.7,0.00449802]
[1737855822936,0.35730531,3332.8,3332.7,0.00449802]
[1737855823136,0.4934,3333.1,3332.7,0.60468802]
[1737855823137,1.2342613,3333.0,3332.7,0.60468802]
[1737855823335,0.35730531,3332.9,3332.7,0.60468802]
[1737855823743,0.35730531,3332.9,3332.7,1.57759933]
[1737855824442,0.35730531,3332.9,3332.7,0.97740933]
[1737855825545,0.95747531,3332.9,3332.7,0.97740933]
[1737855825745,0.35730531,3332.8,3332.7,0.00449802]
[1737855828844,0.95748531,3332.8,3332.7,0.00449802]
[1737855831841,1.23448559,3332.8,3332.7,0.00449802]
[1737855832246,0.95748531,3332.8,3332.7,0.00449802]
[1737855832848,1.23448822,3332.8,3332.7,0.00449802]
[1737855835755,0.35730531,3332.8,3332.7,0.00449802]
[1737855835951,1.23434005,3333.0,3332.7,0.60469802]
[1737855836143,0.35730531,3332.9,3332.7,0.60467802]
[1737855836346,0.63418996,3333.0,3332.7,0.60467802]
[1737855836546,0.63418996,3333.0,3332.7,0.00449802]
[1737855836547,0.60016,3332.9,3332.7,0.00449802]
[1737855837251,0.60018,3332.8,3332.7,0.00449802]
[1737855837950,0.87706465,3332.8,3332.7,0.00449802]
[1737855838155,0.95748531,3332.8,3332.7,0.00449802]
[1737855838554,1.23441497,3332.8,3332.7,0.00449802]
[1737855842161,0.63423497,3332.8,3332.7,0.00449802]
[1737855842358,0.60018,3332.8,3332.7,0.00449802]
[1737855842655,0.95748531,3332.8,3332.7,0.00449802]
[1737855842859,1.23441497,3332.8,3332.7,0.00449802]
[1737855845558,0.95748531,3332.8,3332.7,0.00449802]
[1737855845758,0.35730531,3332.8,3332.7,0.00449802]
[1737855845955,0.60018,3332.8,3332.7,0.00449802]
[1737855846156,0.95748531,3332.8,3332.7,0.00449802]
[1737855851266,1.23451714,3332.8,3332.7,0.00449802]
[1737855851665,0.95748531,3332.8,3332.7,0.00449802]
[1737855853660,1.23450422,3332.8,3332.7,0.00449802]
[1737855864166,2.20751579,3332.8,3332.7,0.00449802]
[1737855866873,1.23450422,3332.8,3332.7,0.00449802]
[1737855881585,0.35730531,3332.8,3332.7,0.00449802]
[1737855881789,0.95748531,3332.8,3332.7,0.00449802]
[1737855883087,1.23451421,3332.8,3332.7,0.00449802]
[1737855884989,2.20752578,3332.8,3332.7,0.00449802]
[1737855893592,3.14252578,3332.8,3332.7,0.00449802]
[1737855897295,2.20752578,3332.8,3332.7,0.00449802]
[1737855900202,1.23451421,3332.8,3332.7,0.00449802]
[1737855900403,0.35730531,3332.8,3332.7,0.00449802]
[1737855900604,0.63413557,3333.0,3332.7,1.09889802]
[1737855900802,0.63413557,3333.0,3332.8,0.9941]
[1737855901293,0.60016,3332.9,3332.8,0.9941]
[1737855901493,0.95746531,3332.9,3332.8,0.9941]
[1737855902404,0.60018,3332.8,3332.7,0.49869802]
[1737855902700,1.93049688,3332.8,3332.7,0.49869802]
[1737855906006,2.20732525,3332.8,3332.7,0.49869802]
[1737855906705,1.23431368,3332.8,3332.7,0.49869802]
[1737855907113,1.23431368,3332.8,3332.7,1.09889802]
[1737855907114,0.63413368,3332.8,3332.7,1.09889802]
[1737855907405,0.35730531,3333.0,3332.7,1.09887802]
[1737855907603,0.35730531,3333.0,3332.8,0.97301157]
[1737855908108,0.35730531,3333.0,3332.9,0.4834]
[1737855908312,0.35730531,3333.0,3332.9,3.6912]
[1737855908502,0.63842302,3333.4,3333.1,0.60011]
[1737855908698,0.63842302,3333.4,3333.2,1.95521157]
[1737855908901,0.63842302,3333.4,3333.2,2.55532157]
[1737855909599,0.63842302,3333.4,3333.3,0.60009]
[1737855910111,0.36180333,3333.4,3333.3,0.60009]
[1737855911112,0.00449802,3333.4,3333.3,0.60009]
[1737855911814,0.00449802,3333.4,3333.2,2.55531157]
[1737855914618,0.00449802,3333.4,3333.2,1.95521157]
[1737855915311,0.60009,3333.3,3333.2,0.9822]
[1737855915513,0.60009,3333.3,3333.2,0.5006]
[1737855915816,1.57069,3333.3,3333.2,0.5006]
[1737855918820,1.57069,3333.3,3332.7,0.00449802]
[1737855918821,0.60015,3333.0,3332.7,0.00449802]
[1737855919017,0.60015,3333.0,3332.8,0.4823]
[1737855920312,1.07516,3332.9,3332.8,0.4823]
[1737855920507,1.07516,3332.9,3332.7,0.00449802]
[1737855920508,0.60018,3332.8,3332.7,0.00449802]
[1737855920713,2.09229157,3332.8,3332.7,0.00449802]
[1737855920918,2.44902979,3332.8,3332.7,0.00449802]
[1737855922422,2.72521394,3332.8,3332.7,0.00449802]
[1737855924928,0.6003,3332.2,3332.0,4.18081157]
[1737855925133,0.60031,3332.1,3332.0,3.2078]
[1737855925421,3.2078,3332.7,3332.0,4.18081157]
[1737855925623,0.35703262,3332.6,3332.5,0.97301157]
[1737855926423,0.35703262,3332.7,3332.6,0.60022]
[1737855926931,0.35689061,3332.9,3332.6,1.11582]
[1737855927127,0.63317858,3333.0,3332.8,0.97301157]
[1737855927327,0.35689061,3333.0,3332.8,0.97301157]
[1737855927922,0.35689061,3333.2,3332.9,0.60016]
[1737855928128,3.7065,3333.3,3333.0,0.97301157]
[1737855928323,3.7065,3333.3,3333.1,0.4814]
[1737855928928,4.30659,3333.3,3333.1,0.4814]
[1737855930028,0.60011,3333.2,3332.6,0.5156]
[1737855930232,0.60011,3333.2,3332.7,1.10329]
[1737855930632,3.7065,3333.3,3332.8,0.60017]
[1737855930825,3.7065,3333.3,3332.7,0.5031]
[1737855930826,0.60013,3333.1,3332.7,1.10329]
[1737855931129,3.7065,3333.3,3332.7,0.5031]
[1737855931428,1.12115,3333.0,3332.7,1.10329]
[1737855931834,3.7065,3333.3,3332.7,0.5031]
[1737855932024,3.7065,3333.3,3332.8,2.5516142]
[1737855932225,1.0988,3333.3,3333.0,0.60014]
[1737855932623,0.00449802,3333.4,3332.8,5.7594142]
[1737855932931,0.00449802,3333.4,3333.2,0.60009]
[1737855933133,0.00449802,3333.4,3333.3,0.4811]
[1737855933134,0.60456802,3333.4,3333.3,0.4811]
[1737855933530,0.00449802,3333.4,3333.3,0.4811]
[1737855934533,0.00449802,3333.4,3333.3,1.08119]
[1737855934729,0.00449802,3333.4,3333.3,0.4811]
[1737855935032,0.60456802,3333.4,3333.3,0.4811]
[1737855935233,0.96148022,3333.4,3333.3,0.4811]
[1737855935432,0.96148022,3333.4,3333.1,0.60012]
[1737855935638,0.3569122,3333.3,3333.1,0.60012]
[1737855936631,0.3569122,3333.3,3333.2,0.60011]
[1737855936820,0.6377122,3333.4,3333.3,0.60009]
[1737855937934,0.63769565,3333.4,3333.3,0.60009]
[1737855938328,0.36141022,3333.4,3333.3,0.60009]
[1737855943240,0.00449802,3333.4,3333.3,0.60009]
[1737855951648,0.00449802,3333.4,3333.3,1.57267723]
[1737855952949,0.00449802,3333.4,3333.3,0.97258723]
[1737855954051,0.00449802,3333.4,3333.3,1.57267723]
[1737855956146,0.00449802,3333.4,3333.3,0.97258723]
[1737855958451,0.28127107,3333.4,3333.3,0.97258723]
[1737855958656,0.63883736,3333.4,3333.3,0.97258723]
[1737855958856,0.63883736,3333.4,3333.2,0.60011]
[1737855959051,0.63883736,3333.4,3333.3,0.97258723]
[1737855959257,0.36206431,3333.4,3333.3,1.57267723]
[1737855960252,0.36206431,3333.4,3333.3,6.57267723]
[1737855960659,0.00449802,3333.4,3333.3,6.57267723]
[1737855961562,0.00449802,3333.4,3333.3,1.57267723]
[1737855962356,0.00449802,3333.4,3333.3,4.78047723]
[1737855964557,0.00449802,3333.4,3333.3,9.78047723]
[1737855965462,0.00449802,3333.4,3333.3,10.0247391]
[1737855967869,0.00449802,3333.4,3333.3,5.0247391]
[1737855968867,0.00449802,3333.4,3333.3,4.78047723]
[1737855969166,0.60456802,3333.4,3333.3,4.18038723]
[1737855969760,0.60456802,3333.4,3333.3,3.2078]
[1737855972770,0.60014,3333.0,3332.9,6.1598]
[1737855973657,0.60011,3333.2,3332.5,0.60022]
[1737855973857,3.2078,3333.3,3332.5,0.60022]
[1737855973858,0.60018,3332.8,3332.5,0.60022]
[1737855974867,0.60021,3332.7,3332.4,3.80804]
[1737855975068,1.0184,3332.9,3332.4,3.80804]
[1737855975257,0.60022,3332.6,3332.4,3.80804]
[1737855975970,0.5046,3332.5,3332.4,3.80804]
[1737855976365,0.5046,3332.5,3332.4,3.2078]
[1737855976567,1.10483,3332.5,3332.4,3.2078]
[1737855980771,0.5046,3332.5,3332.0,3.2078]
[1737855981173,0.60027,3332.3,3332.0,3.80812]
[1737855981474,1.0004,3332.2,3332.0,3.80812]
[1737855983170,1.0004,3332.2,3332.0,5.26242719]
[1737855983377,1.0004,3332.2,3332.1,0.60031]
[1737855984879,1.0004,3332.2,3332.0,5.86273719]
[1737855985480,1.0004,3332.2,3332.0,5.26242719]
[1737855985680,1.0004,3332.2,3332.1,0.60031]
[1737855988372,0.5046,3332.5,3332.0,5.26242719]
[1737855988574,0.5046,3332.5,3332.4,0.60025]
[1737855990281,0.5046,3332.5,3332.3,0.60026]
[1737855990966,0.5046,3332.5,3332.2,0.4748]
[1737855991279,0.5046,3332.5,3332.4,0.60025]
[1737855997787,0.5046,3332.5,3332.4,1.57331347]
[1737855998182,1.10483,3332.5,3332.4,0.97306347]
[1737855998377,0.5046,3332.5,3332.4,0.97306347]
[1737855998583,0.5046,3332.5,3332.4,1.57331347]
[1737855998987,1.10483,3332.5,3332.4,1.57331347]
[1737855999188,0.5046,3332.5,3332.4,1.57331347]
[1737856000988,1.10483,3332.5,3332.4,0.97306347]
[1737856001390,1.10483,3332.5,3332.4,1.57331347]
[1737856001391,0.5046,3332.5,3332.4,1.57331347]
[1737856002487,1.10483,3332.5,3332.4,0.97306347]
[1737856006191,0.5046,3332.5,3332.4,0.97306347]
[1737856006390,1.10483,3332.5,3332.4,0.97306347]
[1737856007582,0.5046,3332.5,3332.2,0.97306347]
[1737856007787,0.5046,3332.5,3332.0,4.18086347]
[1737856007788,1.47766347,3332.5,3332.0,4.18086347]
[1737856007985,0.35790405,3332.4,3332.0,4.18086347]
[1737856008194,0.60031,3332.1,3332.0,4.18086347]
[1737856008393,0.60031,3332.1,3332.0,3.2078]
[1737856008784,0.6003,3332.2,3332.0,4.18086347]
[1737856008993,0.9955,3332.1,3332.0,4.18086347]
[1737856009194,1.5169,3332.1,3332.0,4.18086347]
[1737856009795,2.11721,3332.1,3332.0,4.18086347]
[1737856010097,15.32970731,3332.1,3329.7,3.2078]
[1737856010300,3.80838,3330.6,3330.5,0.22775502]
[1737856010986,0.60062,3330.4,3329.9,1.48176347]
[1737856011187,0.60062,3330.4,3330.2,0.22775502]
[1737856011496,3.2078,3330.6,3330.2,0.22775502]
[1737856011696,0.60063,3330.3,3330.2,0.22775502]
[1737856015090,3.2078,3330.6,3330.2,0.22775502]
[1737856015585,0.60063,3330.3,3330.2,0.22775502]
[1737856017296,0.60061,3330.5,3330.2,0.22775502]
[1737856017496,0.60063,3330.3,3330.2,0.22775502]
[1737856017797,3.2078,3330.6,3329.7,3.2078]
[1737856017798,0.60071,3329.9,3329.7,3.2078]
[1737856018193,0.60071,3329.9,3329.8,0.22775502]
[1737856021099,8.00778231,3329.9,3328.5,3.2078]
[1737856021398,3.2078,3328.6,3327.5,0.9452]
[1737856021605,3.2078,3328.2,3327.7,0.22775502]
[1737856022099,0.60107,3327.9,3327.7,0.22775502]
[1737856022301,3.2078,3328.2,3327.7,0.22775502]
[1737856022796,3.80888,3327.8,3327.7,0.22775502]
[1737856023102,3.2078,3327.8,3327.5,0.9452]
[1737856023297,3.2078,3327.8,3327.7,0.22775502]
[1737856024202,3.80888,3327.8,3327.7,0.22775502]
[1737856024600,3.2078,3327.8,3327.7,0.22775502]
[1737856024900,3.80888,3327.8,3327.7,0.22775502]
[1737856025501,0.60113,3327.6,3327.2,0.60117]
[1737856025697,0.60113,3327.6,3327.5,0.22775502]
[1737856026901,2.65989231,3327.7,3327.5,0.22775502]
[1737856028798,2.05878231,3327.7,3327.5,0.22775502]
[1737856029008,3.2078,3327.8,3327.6,0.22775502]
[1737856029207,3.2078,3327.8,3327.7,1.33075502]
[1737856030008,0.00450559,3328.3,3327.7,0.72965502]
[1737856030200,0.00450559,3328.3,3328.2,0.82876502]
[1737856031105,3.2078,3328.6,3328.5,0.60095]
[1737856031296,3.2078,3328.6,3328.5,0.82870502]
[1737856032612,0.00450559,3328.9,3328.8,0.6009]
[1737856032907,0.00450559,3328.9,3328.8,0.82865502]
[1737856033503,0.00450559,3328.9,3328.8,0.22775502]
[1737856034209,0.00450559,3328.9,3328.8,0.82865502]
[1737856036409,0.00450559,3328.9,3328.8,0.22775502]
[1737856037211,0.00450559,3328.9,3328.8,0.82865502]
[1737856038804,0.00450559,3328.9,3328.8,0.22775502]
[1737856040818,0.00450559,3328.9,3328.8,0.82865502]
[1737856041617,0.00450559,3328.9,3328.8,0.22775502]
[1737856041921,0.00450559,3328.9,3328.8,0.82865502]
[1737856044022,0.00450559,3328.9,3328.8,0.22775502]
[1737856046721,0.60538559,3328.9,3328.8,0.22775502]
[1737856047114,0.00450559,3328.9,3328.8,0.22775502]
[1737856049619,0.00450559,3328.9,3328.8,0.82865502]
[1737856052823,0.00450559,3328.9,3328.8,4.03645502]
[1737856054125,0.00450559,3328.9,3328.8,0.82865502]
[1737856061333,0.00450559,3328.9,3328.8,0.22775502]
[1737856061927,0.60538559,3328.9,3328.8,0.22775502]
[1737856062135,0.36328989,3328.9,3328.3,0.60098]
[1737856062335,3.8087,3328.8,3328.7,0.22775502]
[1737856062538,4.1674843,3328.8,3328.7,0.22775502]
[1737856062930,0.60097,3328.5,3328.2,0.60550559]
[1737856063334,0.60097,3328.5,3328.4,0.22775502]
[1737856063731,0.60097,3328.5,3328.2,0.60550559]
[1737856063732,2.05878231,3328.5,3328.2,0.00450559]
[1737856063939,3.80879,3328.3,3328.2,0.23226061]
[1737856064244,4.16764292,3328.3,3328.2,0.00450559]
[1737856064440,4.66714292,3328.3,3328.2,0.00450559]
[1737856066142,4.30829,3328.3,3328.2,0.00450559]
[1737856067848,4.30829,3328.3,3328.2,0.23226061]
[1737856068054,3.80879,3328.3,3328.2,0.23226061]
[1737856068951,3.2078,3328.3,3328.2,0.23226061]
[1737856069150,3.2078,3328.3,3328.2,0.83327061]
[1737856070456,3.2078,3328.8,3328.7,0.60092]
[1737856070652,3.2078,3328.8,3328.7,0.82867502]
[1737856075950,0.00450559,3328.9,3328.8,0.6009]
[1737856076150,0.00450559,3328.9,3328.8,0.82865502]
[1737856097163,0.00274309,3328.9,3328.8,0.82865502]
[1737856104579,3.2078,3329.3,3328.8,2.88743733]
[1737856104772,3.2078,3329.3,3329.2,0.82858502]
[1737856105471,1.4715,3329.9,3329.2,0.82858502]
[1737856105472,3.2078,3329.8,3329.2,0.82858502]
[1737856105677,0.35857617,3329.7,3329.6,0.60076]
[1737856106275,0.36308176,3329.8,3329.7,0.60074]
[1737856106474,0.36308176,3329.8,3329.7,0.82849502]
[1737856107577,0.36278743,3329.8,3329.7,0.82849502]
[1737856107777,0.36278995,3329.8,3329.7,0.82849502]
[1737856108075,0.00450559,3329.8,3329.7,0.82849502]
[1737856114979,3.81302559,3329.8,3329.7,0.22775502]
[1737856116477,3.81302559,3329.8,3329.1,0.4863]
[1737856116478,3.21230559,3329.8,3329.1,0.4863]
[1737856116680,3.8086,3329.4,3329.1,0.82859502]
[1737856116985,0.505,3329.3,3329.1,0.82859502]
[1737856117185,0.505,3329.3,3329.1,0.22775502]
[1737856117379,0.505,3329.3,3328.6,3.6941]
[1737856117380,0.4792,3329.2,3328.9,0.60087]
[1737856117685,0.5069,3329.1,3328.9,0.82863502]
[1737856119787,0.5069,3329.1,3328.9,0.22775502]
[1737856120079,0.5069,3329.1,3328.6,0.4863]
[1737856120282,0.5069,3329.1,3328.9,0.60087]
[1737856122088,3.2078,3329.0,3328.9,0.60087]
[1737856127189,3.2078,3329.0,3328.9,0.82862502]
[1737856130590,3.2078,3329.0,3328.9,0.60087]
[1737856131183,3.2078,3329.0,3328.9,0.82862502]
[1737856143401,0.60078,3329.5,3329.3,0.6008]
[1737856143594,0.35822479,3329.4,3329.3,0.6008]
[1737856144196,0.35822479,3329.4,3329.3,0.82855502]
[1737856145103,0.63571401,3329.5,3329.4,0.60079]
[1737856145604,0.63571401,3329.5,3329.4,0.82854502]
[1737856145901,4.32506,3329.6,3329.5,0.60077]
[1737856145902,3.2078,3329.6,3329.5,0.60077]
[1737856146203,3.2078,3329.6,3329.5,1.33172502]
[1737856147500,0.00450559,3329.8,3329.7,0.60074]
[1737856147697,0.00450559,3329.8,3329.7,0.82849502]
[1737856151116,0.49930559,3329.8,3329.7,0.22775502]
[1737856151313,1.00460559,3329.8,3329.7,0.82849502]
[1737856152111,1.00460559,3329.8,3329.7,0.22775502]
[1737856154316,0.60522559,3329.8,3329.7,0.22775502]
[1737856154613,1.59342559,3329.8,3329.7,0.22775502]
[1737856155805,0.99270559,3329.8,3329.3,0.9871]
[1737856156012,3.80856,3329.6,3329.5,0.22775502]
[1737856156213,0.60077,3329.5,3329.4,0.22775502]
[1737856156414,1.46039228,3329.5,3329.4,0.22775502]
[1737856158018,0.60085,3329.1,3328.9,0.60087]
[1737856158420,0.60085,3329.1,3329.0,0.22775502]
[1737856160918,0.95901281,3329.1,3329.0,0.22775502]
[1737856162024,2.05878231,3329.4,3329.0,0.22775502]
[1737856162215,0.60085,3329.1,3328.9,0.60087]
[1737856162725,0.60085,3329.1,3329.0,0.22775502]
[1737856162924,0.95905032,3329.1,3329.0,0.22775502]
[1737856163821,1.93436117,3329.1,3329.0,0.22775502]
[1737856164124,5.14216117,3329.1,3329.0,0.22775502]
[1737856165121,5.14216117,3329.1,3328.9,0.60088]
[1737856165321,4.78396085,3329.1,3329.0,0.22775502]
[1737856165521,5.14222924,3329.1,3329.0,0.22775502]
[1737856168727,4.78396085,3329.1,3329.0,0.22775502]
[1737856169326,0.60094,3328.6,3328.4,0.60097]
[1737856169530,0.97531085,3328.5,3328.4,0.60097]
[1737856170031,0.97531085,3328.5,3328.4,0.82872502]
[1737856171732,0.4885,3328.7,3328.5,0.60094]
[1737856171924,0.4885,3328.7,3328.6,0.22775502]
[1737856172729,1.08942,3328.7,3328.6,0.22775502]
[1737856173631,0.4885,3328.7,3328.3,0.5099]
[1737856173931,0.60096,3328.5,3328.3,1.33864502]
[1737856174124,0.60096,3328.5,3328.4,0.22775502]
[1737856174432,0.60096,3328.5,3328.3,0.73765502]
[1737856174933,0.60096,3328.5,3328.3,1.33864502]
[1737856175131,0.60096,3328.5,3328.4,0.22775502]
[1737856175323,0.60096,3328.5,3328.3,1.11089]
[1737856175526,0.60095,3328.5,3328.3,0.60099]
[1737856178734,3.15243905,3328.6,3328.4,0.82872502]
[1737856178930,3.2078,3328.7,3328.6,0.60094]
[1737856179128,3.2078,3328.7,3328.6,0.82869502]
[1737856180635,3.2078,3329.1,3328.6,0.22775502]
[1737856180839,0.60087,3329.0,3328.8,0.60089]
[1737856181041,3.80865,3329.1,3328.9,0.60088]
[1737856182533,0.60087,3329.0,3328.8,0.60089]
[1737856183037,3.2078,3329.1,3328.9,0.22775502]
[1737856183339,0.60086,3329.0,3328.8,0.60089]
[1737856183842,0.60086,3329.0,3328.9,0.22775502]
[1737856184237,3.6866,3329.1,3328.9,0.22775502]
[1737856184540,4.28745,3329.1,3329.0,0.22775502]
[1737856185537,3.2078,3329.1,3329.0,0.22775502]
[1737856185742,3.2078,3329.1,3329.0,0.82861502]
[1737856186943,0.24361693,3330.3,3330.2,0.60065]
[1737856187137,0.24361693,3330.3,3330.2,0.22324943]
[1737856187540,1.10208,3330.6,3330.2,0.22324943]
[1737856187738,0.5015,3330.6,3330.2,0.22324943]
[1737856188047,1.10208,3330.6,3330.2,0.82387943]
[1737856188949,1.10208,3330.6,3330.3,0.60063]
[1737856189447,0.5015,3330.6,3330.3,0.60063]
[1737856190245,0.5015,3330.6,3330.2,0.4842]
[1737856190447,3.21230559,3330.7,3330.6,0.60058]
[1737856190747,3.21230559,3330.7,3330.6,0.82382943]
[1737856193147,3.21230559,3330.7,3330.6,0.22324943]
[1737856193647,3.21230559,3330.7,3330.6,0.82382943]
[1737856193847,0.00450559,3330.7,3330.6,0.82382943]
[1737856201152,0.60039,3331.7,3330.6,0.72864943]
[1737856201153,0.4738,3331.4,3330.6,0.72864943]
[1737856201351,0.99,3331.7,3331.6,0.22324943]
[1737856201553,0.99,3331.7,3331.6,0.82364943]
[1737856204756,0.5018,3331.7,3331.6,0.82364943]
[1737856206855,0.4738,3331.8,3331.7,0.60038]
[1737856207067,0.4738,3331.8,3331.7,0.82362943]
[1737856207256,0.00450559,3332.0,3331.9,0.60034]
[1737856207452,0.00450559,3332.0,3331.9,0.82358943]
[1737856211761,0.00450559,3332.0,3331.9,4.03138943]
[1737856214857,0.00450559,3332.0,3331.9,0.82358943]
[1737856215063,0.00450559,3332.0,3331.9,4.03138943]
[1737856223481,0.00450559,3332.0,3331.9,0.82358943]
[1737856223877,0.00450559,3332.0,3331.9,4.03138943]
[1737856226680,0.00450559,3332.0,3331.9,0.82358943]
[1737856228984,0.00450559,3332.0,3331.9,1.32828943]
[1737856230387,0.00450559,3332.0,3331.9,0.82358943]
[1737856230777,0.00450559,3332.0,3331.9,0.22324943]
[1737856231684,0.60482559,3332.0,3331.9,0.22324943]
[1737856232081,0.96207401,3332.0,3331.9,0.22324943]
[1737856235890,0.60482559,3332.0,3331.9,0.22324943]
[1737856240491,0.60482559,3332.0,3331.7,0.60037]
[1737856240692,0.60482559,3332.0,3331.7,0.82361943]
[1737856240890,0.60482559,3332.0,3331.8,0.60036]
[1737856241786,0.00450559,3332.0,3331.8,0.60036]
[1737856244391,0.00450559,3332.0,3331.4,2.06088905]
[1737856244685,0.00450559,3332.0,3330.8,5.26868905]
[1737856244686,3.2078,3331.9,3330.8,5.26868905]